bitfinex/quotes_SOLUSD_20240604
["timestamp","ask_amount","ask_price","bid_price","bid_amount"]
[1717511360237,2.2162,166.95,166.91,6.91]
[1717511360448,2.2161,166.96,166.91,6.91]
[1717511360757,4.1350278,167.0,166.94,6.91]
[1717511360923,2.2157,166.99,166.93,2.2164]
[1717511361123,2.2157,166.99,166.93,9.1264]
[1717511361345,2.2157,166.99,166.94,6.91]
[1717511361740,6.3506278,167.0,166.94,9.1263]
[1717511362051,6.3506278,167.0,166.95,6.91]
[1717511362754,6.3506278,167.0,166.94,2.2163]
[1717511362947,6.3506278,167.0,166.95,6.91]
[1717511363849,2.2158,166.98,166.91,58.1575]
[1717511364050,2.2158,166.98,166.93,6.91]
[1717511364259,2.2158,166.98,166.94,0.17]
[1717511365154,2.2157,166.99,166.94,7.08]
[1717511366537,6.3506278,167.0,166.95,6.91]
[1717511366739,6.3506278,167.0,166.94,2.3863]
[1717511366740,4.1350278,167.0,166.96,6.91]
[1717511366937,6.3505278,167.0,166.94,2.3863]
[1717511367156,6.3505278,167.0,166.96,6.91]
[1717511371854,6.3505278,167.0,166.94,2.3862]
[1717511372055,6.3505278,167.0,166.96,6.91]
[1717511372557,6.3505278,167.0,166.95,0.17]
[1717511372761,6.3505278,167.0,166.94,0.34]
[1717511372956,6.3505278,167.0,166.96,6.91]
[1717511374534,4.1350278,167.0,166.98,6.91]
[1717511374738,4.1350278,167.0,166.99,6.91]
[1717511378144,4.1350278,167.0,166.97,0.34]
[1717511378449,4.1350278,167.0,166.98,6.91]
[1717511378646,4.1350278,167.0,166.97,0.34]
[1717511378854,4.1350278,167.0,166.98,6.91]
[1717511382458,4.1350278,167.0,166.99,6.91]
[1717511382835,4.1350278,167.0,166.98,6.91]
[1717511385664,4.1350278,167.0,166.98,9.1258]
[1717511385842,4.1350278,167.0,166.99,6.91]
[1717511387869,4.1350278,167.0,166.98,6.91]
[1717511389254,6.3580728,167.0,166.98,6.91]
[1717511389983,6.3580728,167.0,166.99,6.91]
[1717511390267,6.3580728,167.0,166.99,42.9113]
[1717511390476,6.3580728,167.0,166.99,38.4957]
[1717511390655,6.3580728,167.0,166.99,45.4057]
[1717511393072,6.3580728,167.0,166.99,2.5557]
[1717511393255,6.3580728,167.0,166.99,45.4057]
[1717511394475,6.3580728,167.0,166.99,49.8371]
[1717511394675,6.3580728,167.0,166.99,191.5539]
[1717511395170,0.2,167.04,166.99,195.17306391]
[1717511395470,0.2,167.04,167.03,6.91]
[1717511395663,0.2,167.04,167.03,7.25]
[1717511396151,0.2,167.04,167.03,9.4651]
[1717511396351,0.2,167.04,167.03,45.4051]
[1717511397179,0.2,167.04,167.03,181.169]
[1717511397391,7.11,167.14,167.03,192.17516391]
[1717511397560,2.2141,167.11,167.04,0.34]
[1717511397756,2.2141,167.11,167.06,6.91]
[1717511397956,2.2141,167.11,167.07,0.34]
[1717511398272,2.214,167.12,167.07,0.34]
[1717511398984,2.2138,167.13,167.07,8.69752756]
[1717511399494,2.2138,167.13,167.07,44.63752756]
[1717511399656,2.2139,167.12,167.07,44.63752756]
[1717511400277,2.2138,167.13,167.07,43.19]
[1717511400481,2.2141,167.11,167.07,43.19]
[1717511400953,2.214,167.12,167.07,43.19]
[1717511401379,2.2142,167.1,167.07,0.34]
[1717511401767,2.2141,167.11,167.08,0.17]
[1717511401951,2.2141,167.11,167.06,7.25]
[1717511402963,2.214,167.12,167.06,7.25]
[1717511403166,0.2,167.14,167.06,7.25]
[1717511403366,2.2141,167.11,167.06,7.25]
[1717511404598,2.2142,167.1,167.06,0.34]
[1717511404790,2.2142,167.1,167.07,0.17]
[1717511405093,2.2143,167.1,167.05,0.34]
[1717511405480,9.1241,167.11,167.05,0.34]
[1717511405675,9.1241,167.11,167.05,2.5549]
[1717511405883,2.2141,167.11,167.05,2.5549]
[1717511406076,2.2141,167.11,167.05,9.4649]
[1717511406492,0.2,167.14,167.07,35.94]
[1717511406683,0.2,167.14,167.08,43.19]
[1717511406684,2.2138,167.13,167.08,43.19]
[1717511407189,0.2,167.14,167.08,45.4045]
[1717511407413,0.2,167.14,167.08,36.28]
[1717511407690,9.3237,167.14,167.08,0.34]
[1717511407991,0.2,167.14,167.08,45.4045]
[1717511408171,2.4137,167.14,167.08,45.4045]
[1717511408488,0.2,167.14,167.08,45.4045]
[1717511409288,0.2,167.14,167.08,2.2145]
[1717511409468,0.2,167.14,167.08,9.1245]
[1717511409795,2.4137,167.14,167.08,9.1245]
[1717511409970,0.2,167.14,167.08,9.1245]
[1717511410169,0.2,167.14,167.08,45.0645]
[1717511410592,0.2,167.14,167.08,38.4945]
[1717511411395,2.4137,167.14,167.08,2.5545]
[1717511411568,0.2,167.14,167.08,2.5545]
[1717511412485,0.2,167.14,167.08,45.4045]
[1717511414492,2.4137,167.14,167.08,38.4945]
[1717511415485,2.4137,167.14,167.08,2.5545]
[1717511415792,9.3237,167.14,167.08,2.5545]
[1717511416396,7.11,167.14,167.08,0.34]
[1717511416695,6.91,167.13,167.08,0.34]
[1717511417075,9.1239,167.13,167.06,45.0646]
[1717511417378,2.2139,167.12,167.06,38.1546]
[1717511417683,9.1238,167.13,167.06,45.0646]
[1717511418093,9.1238,167.13,167.07,2.2146]
[1717511418590,9.1238,167.13,167.06,9.1247]
[1717511419490,9.3237,167.14,167.07,6.91]
[1717511419700,2.4137,167.14,167.08,0.17]
[1717511419894,2.4137,167.14,167.08,0.34]
[1717511420080,9.3237,167.14,167.08,0.34]
[1717511420477,9.3237,167.14,167.08,2.2145]
[1717511420689,9.3237,167.14,167.08,0.34]
[1717511420994,2.4137,167.14,167.08,9.4645]
[1717511421208,9.3237,167.14,167.08,2.5545]
[1717511421375,2.2138,167.13,167.08,0.34]
[1717511421580,9.3237,167.14,167.08,0.34]
[1717511421774,2.2138,167.13,167.08,0.34]
[1717511422301,9.1238,167.13,167.08,0.34]
[1717511422502,0.2,167.14,167.04,4.4298]
[1717511422503,6.91,167.11,167.04,35.94]
[1717511422686,6.91,167.11,167.06,2.2147]
[1717511422883,9.124,167.12,167.07,0.17]
[1717511423688,2.214,167.12,167.07,0.17]
[1717511423898,2.2141,167.11,167.07,0.17]
[1717511424392,6.91,167.12,167.06,0.34]
[1717511424573,2.2139,167.13,167.08,6.91]
[1717511424779,2.2139,167.13,167.08,8.44350353]
[1717511425288,2.2139,167.13,167.08,0.34]
[1717511425900,2.2141,167.11,167.08,0.34]
[1717511426113,2.2141,167.11,167.07,0.34]
[1717511426280,2.2141,167.11,167.08,0.17]
[1717511427407,0.823512,167.09,167.06,0.34]
[1717511428079,0.823512,167.09,167.08,45.0645]
[1717511428280,0.823512,167.09,167.08,45.4045]
[1717511428897,0.823512,167.09,167.08,38.4945]
[1717511429099,0.823512,167.09,167.08,45.4045]
[1717511429305,0.823512,167.09,167.08,2.5545]
[1717511429606,0.823512,167.09,167.08,45.4045]
[1717511431805,0.823512,167.09,167.08,2.5545]
[1717511432010,0.823512,167.09,167.08,9.4645]
[1717511432183,0.823512,167.09,167.08,2.5545]
[1717511432385,0.823512,167.09,167.08,9.4645]
[1717511432618,0.823512,167.09,167.08,7.25]
[1717511432786,0.823512,167.09,167.08,0.34]
[1717511432986,0.823512,167.09,167.08,2.5545]
[1717511433514,0.823512,167.09,167.08,9.4645]
[1717511435287,0.823512,167.09,167.08,2.5545]
[1717511435487,0.823512,167.09,167.08,9.4645]
[1717511437110,0.823512,167.09,167.08,51.89626887]
[1717511439803,0.823512,167.09,167.08,44.98626887]
[1717511440000,0.823512,167.09,167.08,51.89626887]
[1717511443022,0.823512,167.09,167.08,85.06786887]
[1717511443717,0.66529597,167.09,167.08,85.06786887]
[1717511443915,0.66529597,167.09,167.08,78.15786887]
[1717511444106,0.66529597,167.09,167.08,55.67526887]
[1717511444413,0.66529597,167.09,167.08,51.89626887]
[1717511445126,0.66529597,167.09,167.08,56.32526887]
[1717511447523,0.66529597,167.09,167.08,199.23756887]
[1717511447703,0.66529597,167.09,167.08,225.88106887]
[1717511449519,0.66529597,167.09,167.08,234.73906887]
[1717511450626,0.66529597,167.09,167.08,204.91676887]
[1717511450809,0.66529597,167.09,167.08,211.82676887]
[1717511451207,0.66529597,167.09,167.08,202.96876887]
[1717511452311,0.66529597,167.09,167.08,196.05876887]
[1717511452504,0.66529597,167.09,167.08,202.96876887]
[1717511453132,0.66529597,167.09,167.08,69.41526887]
[1717511453334,0.66529597,167.09,167.08,44.98626887]
[1717511453711,0.66529597,167.09,167.08,51.89626887]
[1717511454425,0.66529597,167.09,167.08,56.32526887]
[1717511455124,0.66529597,167.09,167.08,44.98626887]
[1717511455521,0.66529597,167.09,167.08,51.89626887]
[1717511456023,0.66529597,167.09,167.08,44.98626887]
[1717511456226,0.66529597,167.09,167.08,51.89626887]
[1717511457028,0.66529597,167.09,167.08,2.2145]
[1717511457528,0.66529597,167.09,167.08,9.1245]
[1717511458726,0.66529597,167.09,167.08,9.2945]
[1717511459117,0.66529597,167.09,167.08,9.4645]
[1717511460226,0.66529597,167.09,167.08,45.4045]
[1717511460428,0.66529597,167.09,167.08,38.4945]
[1717511460807,0.66529597,167.09,167.08,0.34]
[1717511461709,0.66529597,167.09,167.08,0.17]
[1717511462124,0.66529597,167.09,167.08,2.3845]
[1717511462330,0.66529597,167.09,167.08,9.2945]
[1717511462807,0.66529597,167.09,167.08,2.3845]
[1717511463011,0.66529597,167.09,167.08,0.34]
[1717511463208,0.66529597,167.09,167.08,2.5545]
[1717511464415,0.66529597,167.09,167.08,9.4645]
[1717511466530,0.66529597,167.09,167.08,45.4045]
[1717511467612,0.66529597,167.09,167.08,2.5545]
[1717511467913,0.66529597,167.09,167.08,45.4045]
[1717511469843,0.66529597,167.09,167.08,49.8335]
[1717511470018,0.66529597,167.09,167.08,69.8335]
[1717511470212,0.66529597,167.09,167.08,76.477]
[1717511470410,0.66529597,167.09,167.08,196.477]
[1717511470636,0.66529597,167.09,167.08,176.477]
[1717511470833,0.66529597,167.09,167.08,196.477]
[1717511471641,0.66529597,167.09,167.08,42.9235]
[1717511471934,0.66529597,167.09,167.08,45.4045]
[1717511472640,0.66529597,167.09,167.08,38.4945]
[1717511472845,0.66529597,167.09,167.08,2.2145]
[1717511473021,0.66529597,167.09,167.08,9.1245]
[1717511473827,0.66529597,167.09,167.08,45.0645]
[1717511474141,0.66529597,167.09,167.08,45.4045]
[1717511476956,0.66529597,167.09,167.08,2.5545]
[1717511477251,0.66529597,167.09,167.08,45.4045]
[1717511477841,0.66529597,167.09,167.08,38.4945]
[1717511478076,0.66529597,167.09,167.08,45.4045]
[1717511481780,0.66529597,167.09,167.08,60.65233477]
[1717511481971,0.66529597,167.09,167.08,71.72483477]
[1717511482171,0.66529597,167.09,167.08,58.44703477]
[1717511482489,0.66529597,167.09,167.08,51.53703477]
[1717511482780,0.66529597,167.09,167.08,58.44703477]
[1717511482981,0.66529597,167.09,167.08,80.66673477]
[1717511483279,0.66529597,167.09,167.08,64.85103477]
[1717511483484,0.66529597,167.09,167.08,71.49453477]
[1717511484184,0.66529597,167.09,167.08,121.73481113]
[1717511484789,0.66529597,167.09,167.08,93.94853477]
[1717511485301,0.66529597,167.09,167.08,116.59853477]
[1717511486279,0.66529597,167.09,167.08,109.68853477]
[1717511486595,0.66529597,167.09,167.08,116.59853477]
[1717511487395,0.66529597,167.09,167.08,125.58502115]
[1717511490098,0.66529597,167.09,167.08,118.67502115]
[1717511490271,0.66529597,167.09,167.08,96.02502115]
[1717511490472,0.66529597,167.09,167.08,102.93502115]
[1717511492095,0.66529597,167.09,167.08,109.16662115]
[1717511495578,0.48529597,167.09,167.08,109.16662115]
[1717511497582,0.12529597,167.09,167.08,115.05575158]
[1717511497774,0.2,167.14,167.13,42.5814]
[1717511497976,0.2,167.14,167.13,56.1329]
[1717511498393,0.2,167.14,167.13,49.4914]
[1717511499792,0.2,167.14,167.13,49.8314]
[1717511501795,0.2,167.14,167.13,45.0638]
[1717511502984,0.2,167.14,167.13,49.4914]
[1717511503202,0.2,167.14,167.13,69.6614]
[1717511503409,0.2,167.14,167.13,69.8314]
[1717511504887,0.2,167.14,167.13,45.0638]
[1717511506112,0.2,167.14,167.13,45.2338]
[1717511506789,0.2,167.14,167.13,45.4038]
[1717511508318,0.2,167.14,167.13,165.4038]
[1717511509292,0.2,167.14,167.13,158.4938]
[1717511509611,0.2,167.14,167.13,165.4038]
[1717511510617,0.2,167.14,167.13,169.8314]
[1717511510782,0.2,167.14,167.13,176.4729]
[1717511510987,0.2,167.14,167.13,196.4729]
[1717511511521,0.2,167.14,167.13,222.10360306]
[1717511513219,0.2,167.14,167.13,235.40718724]
[1717511513421,193.0,167.19,167.18,38.1531]
[1717511513594,193.0,167.19,167.18,45.0631]
[1717511515401,193.0,167.19,167.18,38.1531]
[1717511515717,193.0,167.19,167.18,45.4031]
[1717511516010,193.0,167.19,167.18,76.4689]
[1717511516221,193.0,167.19,167.18,51.28659279]
[1717511516417,193.0,167.19,167.18,71.28659279]
[1717511517321,193.0,167.19,167.18,80.54233083]
[1717511519197,193.0,167.19,167.18,71.28659279]
[1717511520290,193.0,167.19,167.18,100.31959279]
[1717511520491,193.0,167.19,167.18,93.68879279]
[1717511520711,193.0,167.19,167.18,104.75879279]
[1717511520918,176.1534,167.19,167.18,133.68579279]
[1717511521118,72.7148,167.19,167.18,130.58437504]
[1717511521290,42.7948,167.19,167.18,192.48051285]
[1717511521491,11.07896468,167.19,167.18,192.48051285]
[1717511521690,1.1738428,167.26,167.25,38.1522]
[1717511521932,8.0838428,167.26,167.25,38.1522]
[1717511522216,8.0838428,167.26,167.25,35.94]
[1717511522434,14.4690428,167.26,167.25,35.94]
[1717511522715,1.1738428,167.26,167.25,178.0624]
[1717511523042,1.1738428,167.26,167.25,166.39056677]
[1717511523223,1.1738428,167.26,167.25,158.3222]
[1717511523394,1.1738428,167.26,167.25,169.3834]
[1717511523712,1.1738428,167.26,167.25,182.7467]
[1717511523915,1.1738428,167.26,167.25,182.9167]
[1717511524219,1.1738428,167.26,167.25,222.458]
[1717511524414,6.91,167.33,167.3,35.94]
[1717511524590,6.91,167.33,167.32,2.2112]
[1717511524786,6.91,167.33,167.32,2.5512]
[1717511524991,0.823512,167.43,167.4,2.2102]
[1717511525194,0.823512,167.43,167.4,2.3802]
[1717511525399,13.07809831,167.41,167.4,2.3802]
[1717511525616,13.07809831,167.41,167.4,0.17]
[1717511525814,13.07809831,167.41,167.39,0.17]
[1717511526019,6.3827,167.39,167.35,35.91]
[1717511526191,21.8731,167.4,167.36,0.17]
[1717511526392,21.8731,167.4,167.35,2.2109]
[1717511526393,6.91,167.37,167.35,2.2109]
[1717511526597,6.91,167.36,167.34,0.34]
[1717511526814,6.5011,167.37,167.35,2.2109]
[1717511527024,6.5011,167.37,167.36,0.17]
[1717511527194,13.4111,167.37,167.34,38.461]
[1717511527614,6.5011,167.37,167.35,2.2109]
[1717511527816,6.5011,167.37,167.36,0.17]
[1717511528003,6.91,167.37,167.34,36.08]
[1717511528199,13.5197,167.35,167.34,2.211]
[1717511528405,13.5197,167.35,167.33,2.2111]
[1717511528720,6.6097,167.35,167.33,2.2111]
[1717511528902,6.91,167.34,167.33,2.2111]
[1717511529224,6.6097,167.35,167.34,2.211]
[1717511529403,13.5197,167.35,167.34,2.211]
[1717511529605,6.0807,167.34,167.3,38.1214]
[1717511529918,6.6207,167.33,167.32,2.2113]
[1717511530339,6.6207,167.33,167.31,2.2114]
[1717511531017,6.3725,167.32,167.29,2.2117]
[1717511531232,2.24749831,167.41,167.31,124.4228]
[1717511531415,6.91,167.36,167.35,2.2108]
[1717511531618,0.03729831,167.41,167.35,2.2108]
[1717511531912,6.91,167.36,167.33,2.211]
[1717511532144,0.03729831,167.41,167.29,128.8465]
[1717511532145,6.91,167.35,167.29,128.8465]
[1717511532298,6.4411,167.37,167.3,2.2115]
[1717511532619,22.4554,167.4,167.31,0.17]
[1717511532806,6.91,167.35,167.3,0.17]
[1717511533130,6.91,167.33,167.31,2.2113]
[1717511533315,6.91,167.33,167.28,4.4236]
[1717511533316,27.64,167.36,167.32,0.17]
[1717511533620,27.64,167.36,167.28,2.2118]
[1717511533621,13.0549,167.33,167.28,2.2118]
[1717511533829,6.91,167.31,167.26,4.4241]
[1717511534146,6.91,167.3,167.27,2.2119]
[1717511534302,13.0549,167.29,167.27,2.2119]
[1717511534816,6.91,167.28,167.22,11.0628]
[1717511535022,6.91,167.27,167.19,131.0645]
[1717511535328,6.91,167.27,167.25,2.2122]
[1717511535630,13.3038,167.26,167.19,120.0]
[1717511535802,13.3038,167.26,167.21,2.2127]
[1717511535803,6.91,167.25,167.21,2.2127]
[1717511536005,6.3938,167.26,167.23,2.2124]
[1717511536220,6.91,167.24,167.23,2.2124]
[1717511536536,13.475,167.24,167.17,120.0]
[1717511537032,6.91,167.22,167.2,2.2128]
[1717511537205,6.91,167.22,167.17,120.0]
[1717511537526,6.91,167.22,167.2,2.2128]
[1717511537729,6.91,167.21,167.2,2.2128]
[1717511537911,6.565,167.24,167.21,2.2127]
[1717511538226,6.565,167.24,167.2,2.2128]
[1717511538713,6.565,167.24,167.21,2.2127]
[1717511539220,6.565,167.24,167.19,0.17]
[1717511539221,6.565,167.24,167.22,2.2126]
[1717511539737,6.565,167.24,167.2,0.17]
[1717511539918,6.565,167.24,167.21,2.2126]
[1717511540109,6.565,167.24,167.22,0.17]
[1717511540309,6.565,167.24,167.19,0.34]
[1717511540310,17.8994,167.24,167.21,0.17]
[1717511540548,6.1413,167.22,167.18,2.213]
[1717511541037,6.1413,167.22,167.19,2.213]
[1717511542051,6.222,167.22,167.18,2.2131]
[1717511542344,6.222,167.22,167.19,0.17]
[1717511542842,6.222,167.22,167.19,2.383]
[1717511543751,6.4714,167.22,167.19,2.213]
[1717511543935,6.4714,167.21,167.19,2.213]
[1717511544138,6.4714,167.21,167.18,2.2131]
[1717511545441,6.1256,167.21,167.18,2.2131]
[1717511546450,4.7539389,167.36,167.2,120.0]
[1717511546754,20.63,167.3,167.21,0.34]
[1717511546936,28.9672,167.3,167.22,4.4252]
[1717511547253,6.1256,167.29,167.26,2.212]
[1717511547444,48.88365898,167.33,167.24,4.4247]
[1717511547755,48.88365898,167.33,167.25,2.3821]
[1717511547756,6.1256,167.29,167.25,2.3821]
[1717511547938,6.1256,167.29,167.26,2.2121]
[1717511548145,8.3373,167.29,167.25,0.17]
[1717511548331,8.3373,167.29,167.24,2.2123]
[1717511549250,6.1256,167.29,167.25,2.2122]
[1717511549422,6.1256,167.29,167.26,2.2121]
[1717511550156,8.7627,167.31,167.25,2.2121]
[1717511550351,6.0553,167.3,167.26,2.212]
[1717511550526,6.0553,167.29,167.26,2.212]
[1717511550843,6.0553,167.29,167.23,0.34]
[1717511551024,6.0553,167.29,167.25,2.2121]
[1717511551322,6.0553,167.29,167.26,2.2121]
[1717511551743,6.0553,167.29,167.25,2.2122]
[1717511551961,6.0553,167.29,167.25,52.2122]
[1717511552332,8.267,167.29,167.25,50.0]
[1717511552531,6.1474,167.27,167.25,50.0]
[1717511552847,2.2121,167.26,167.25,50.0]
[1717511553105,26.87795898,167.33,167.25,56.035]
[1717511553350,6.1474,167.32,167.28,2.2118]
[1717511553521,48.22595898,167.33,167.25,50.0]
[1717511553720,8.3697,167.29,167.25,50.0]
[1717511553925,6.158,167.29,167.25,50.0]
[1717511554255,6.158,167.28,167.25,52.2122]
[1717511555263,6.158,167.28,167.25,50.0]
[1717511555438,6.5206,167.27,167.25,50.0]
[1717511555623,20.63,167.3,167.25,50.0]
[1717511555952,6.1217,167.26,167.25,50.0]
[1717511556432,8.3338,167.26,167.25,50.0]
[1717511557447,20.63,167.27,167.26,22.121]
[1717511557654,6.24795898,167.33,167.25,50.0]
[1717511557984,20.63,167.36,167.25,50.0]
[1717511558159,2.2112,167.33,167.27,2.2119]
[1717511558342,6.0656,167.36,167.25,50.0]
[1717511558537,2.2114,167.32,167.25,50.0]
[1717511558759,2.2115,167.31,167.25,50.0]
[1717511559069,2.2115,167.31,167.25,52.2122]
[1717511559581,2.2113,167.32,167.25,52.2122]
[1717511559873,2.2113,167.32,167.26,2.2121]
[1717511561962,2.2113,167.32,167.25,50.0]
[1717511561963,2.2112,167.33,167.27,2.2119]
[1717511562146,2.2112,167.33,167.26,2.212]
[1717511562349,20.63,167.34,167.27,2.2119]
[1717511562972,2.2112,167.33,167.26,2.212]
[1717511563164,2.2113,167.32,167.26,2.212]
[1717511563461,2.2112,167.33,167.26,2.212]
[1717511563637,2.2112,167.33,167.27,2.2119]
[1717511564042,2.2112,167.33,167.26,2.212]
[1717511564769,20.63,167.31,167.25,50.0]
[1717511564937,6.2737,167.27,167.25,50.0]
[1717511565143,6.2737,167.26,167.25,50.0]
[1717511565953,2.2119,167.28,167.21,2.2127]
[1717511566166,2.2118,167.29,167.18,4.4263]
[1717511566338,20.63,167.28,167.21,2.2127]
[1717511566539,20.63,167.28,167.22,2.2126]
[1717511566758,22.8418,167.28,167.22,2.2126]
[1717511567450,20.63,167.28,167.23,2.2125]
[1717511567864,20.63,167.28,167.22,2.2126]
[1717511568364,20.63,167.28,167.18,4.4263]
[1717511568365,22.8418,167.28,167.21,2.2127]
[1717511568869,22.8418,167.28,167.22,2.2126]
[1717511570070,20.63,167.28,167.22,2.2126]
[1717511570267,2.2117,167.29,167.22,2.2126]
[1717511570660,2.2117,167.29,167.23,2.2125]
[1717511570870,2.2117,167.29,167.18,4.4263]
[1717511570871,6.24901715,167.33,167.32,4.4226]
[1717511571088,0.03729831,167.41,167.29,4.4233]
[1717511571376,20.66729831,167.41,167.33,2.2111]
[1717511571678,20.66729831,167.41,167.32,2.2113]
[1717511571867,2.2103,167.4,167.32,2.2113]
[1717511572063,2.2104,167.39,167.31,2.2114]
[1717511572755,2.2104,167.39,167.32,2.2113]
[1717511573084,2.2104,167.39,167.31,2.2114]
[1717511573287,36.89419831,167.41,167.3,2.2115]
[1717511573573,36.89419831,167.41,167.25,13.2731]
[1717511573747,2.2107,167.37,167.29,2.2116]
[1717511573950,2.2105,167.38,167.3,2.2115]
[1717511574173,2.2105,167.38,167.31,2.2114]
[1717511574366,2.2105,167.38,167.3,2.2115]
[1717511574679,36.89419831,167.41,167.29,2.2117]
[1717511574884,2.2109,167.36,167.28,2.2118]
[1717511575681,2.2109,167.36,167.29,2.2116]
[1717511576455,4.7605,167.4,167.25,2.2122]
[1717511576456,2.2113,167.32,167.25,2.2122]
[1717511576659,4.4215,167.37,167.22,4.425]
[1717511576855,20.63,167.34,167.19,4.4258]
[1717511577060,2.2116,167.3,167.23,2.2124]
[1717511579481,2.2117,167.29,167.23,2.2124]
[1717511579686,2.2116,167.3,167.23,2.2124]
[1717511581188,2.2126,167.23,167.17,2.2133]
[1717511581396,20.63,167.24,167.17,2.2133]
[1717511581692,20.63,167.24,167.18,2.2131]
[1717511581866,22.8424,167.24,167.18,2.2131]
[1717511582066,20.63,167.24,167.18,2.2131]
[1717511582600,22.8424,167.24,167.18,2.2131]
[1717511583160,20.63,167.27,167.15,4.4269]
[1717511583386,2.2124,167.24,167.19,2.213]
[1717511583583,2.2122,167.25,167.19,2.213]
[1717511584872,2.2124,167.24,167.18,2.2131]
[1717511585485,2.2125,167.23,167.18,2.2131]
[1717511585685,4.4242,167.26,167.13,4.4275]
[1717511585874,2.2127,167.22,167.16,2.2134]
[1717511586183,2.2128,167.21,167.16,2.2134]
[1717511586588,2.2126,167.22,167.16,2.2134]
[1717511586783,2.2126,167.22,167.13,4.4275]
[1717511586784,2.2126,167.22,167.17,2.2133]
[1717511588416,2.2129,167.2,167.15,2.2135]
[1717511588710,2.2128,167.21,167.16,2.2134]
[1717511589375,2.2126,167.22,167.17,2.2132]
[1717511589582,2.2127,167.21,167.17,2.2132]
[1717511590188,2.2127,167.21,167.16,2.2133]
[1717511590400,2.2127,167.21,167.17,2.2133]
[1717511590713,2.2127,167.21,167.16,2.2133]
[1717511590875,2.2127,167.21,167.17,2.2132]
[1717511591075,2.2127,167.22,167.17,2.2132]
[1717511591305,2.2131,167.18,167.1,4.4282]
[1717511591477,6.2696,167.22,167.12,4.4277]
[1717511591676,2.213,167.2,167.15,2.2134]
[1717511592300,2.2128,167.21,167.16,2.2134]
[1717511592484,2.2129,167.2,167.16,2.2134]
[1717511592684,2.2128,167.21,167.16,2.2134]
[1717511594489,2.2132,167.18,167.1,8.8566]
[1717511594895,2.2132,167.18,167.14,2.2137]
[1717511595206,2.2133,167.17,167.13,2.2138]
[1717511595510,8.4646,167.17,167.13,2.2138]
[1717511595708,6.2513,167.17,167.12,2.2139]
[1717511595913,8.4646,167.17,167.13,2.2138]
[1717511596084,6.2513,167.17,167.13,2.2138]
[1717511596285,6.2513,167.17,167.07,17.76000711]
[1717511596286,2.2135,167.16,167.11,2.214]
[1717511596484,2.2135,167.15,167.11,2.214]
[1717511597029,6.4473,167.18,167.1,2.2142]
[1717511597030,4.4268,167.17,167.1,2.2142]
[1717511597315,2.2139,167.13,167.06,13.33371564]
[1717511597615,8.8504,167.13,167.08,2.2144]
[1717511597983,8.8504,167.13,167.06,4.4294]
[1717511598196,8.8075,167.12,167.08,2.2144]
[1717511598505,6.5935,167.12,167.08,2.2144]
[1717511599006,6.5935,167.12,167.09,2.2143]
[1717511599305,6.5935,167.12,167.05,4.4297]
[1717511599606,6.5935,167.12,167.07,2.2146]
[1717511599802,8.8074,167.12,167.07,2.2145]
[1717511600192,6.5935,167.12,167.08,2.2144]
[1717511600398,27.2878,167.11,167.03,2.215]
[1717511600704,2.2138,167.14,167.05,6.6446]
[1717511600905,2.2138,167.13,167.09,2.2143]
[1717511601218,6.5488,167.13,167.09,2.2143]
[1717511601442,2.2135,167.16,167.06,8.859]